bitfinex-derivatives/quotes_SOLF0:USTF0_20250829
["timestamp","ask_amount","ask_price","bid_price","bid_amount"]
[1756431141198,7.37,213.9,213.75,7.69]
[1756431142505,7.37,213.96,213.75,7.69]
[1756431142703,11.41183884,213.96,213.75,7.69]
[1756431143607,7.37,213.91,213.75,7.69]
[1756431144006,7.37,213.91,213.76,65.4887]
[1756431144206,7.37,213.91,213.75,7.69]
[1756431144406,4.2075,213.89,213.75,7.69]
[1756431144609,7.37,213.91,213.75,7.69]
[1756431144905,65.4382,213.93,213.75,7.69]
[1756431144906,7.37,213.87,213.75,7.69]
[1756431145207,4.04183884,213.84,213.69,7.69]
[1756431146005,4.04183884,213.8,213.69,7.69]
[1756431146208,7.37,213.77,213.61,7.69]
[1756431146408,4.2105,213.74,213.63,4.2125]
[1756431146609,7.37,213.77,213.64,7.69]
[1756431147813,3.24937568,213.76,213.64,7.69]
[1756431148009,4.04183884,213.76,213.64,7.69]
[1756431148410,4.2105,213.74,213.64,11.9021]
[1756431148811,4.2108,213.72,213.64,7.69]
[1756431149008,4.2108,213.72,213.67,0.03529351]
[1756431149009,7.37,213.7,213.67,0.03529351]
[1756431149307,3.25456382,213.69,213.67,0.03529351]
[1756431149508,4.04183884,213.72,213.58,7.69]
[1756431149709,3.25970266,213.71,213.58,7.69]
[1756431149906,3.25970266,213.7,213.58,7.69]
[1756431150212,3.25970266,213.69,213.58,7.69]
[1756431150511,3.25970266,213.68,213.58,7.69]
[1756431150711,191.0125,213.75,213.58,7.69]
[1756431150712,3.25970266,213.67,213.63,7.69]
[1756431150913,7.37,213.75,213.64,7.69]
[1756431151313,105.80742559,213.8,213.64,7.69]
[1756431151509,2.32280047,213.79,213.66,7.69]
[1756431151707,2.32280047,213.78,213.66,7.69]
[1756431152012,2.32280047,213.77,213.66,7.69]
[1756431152314,4.2096,213.78,213.66,11.9018]
[1756431152515,4.04183884,213.76,213.59,4.04183884]
[1756431152710,4.04183884,213.76,213.57,314.56]
[1756431152711,2.32360331,213.75,213.6,7.69]
[1756431152906,69.53133884,213.76,213.6,7.69]
[1756431152907,4.04183884,213.71,213.6,7.69]
[1756431153112,2.32479946,213.7,213.6,7.69]
[1756431153312,65.5077,213.7,213.6,7.69]
[1756431153514,9.69486953,213.69,213.52,7.69]
[1756431153713,2.32486953,213.68,213.52,7.69]
[1756431154012,7.37,213.65,213.52,7.69]
[1756431154214,2.32486953,213.64,213.52,7.69]
[1756431154414,65.5206,213.66,213.39,7.69]
[1756431154415,7.37,213.53,213.39,7.69]
[1756431154617,2.32172096,213.52,213.39,7.69]
[1756431154917,4.2154,213.49,213.39,7.69]
[1756431155114,6.71463292,213.47,213.31,40.92]
[1756431155326,7.37,213.48,213.34,7.69]
[1756431155518,7.37,213.48,213.34,11.9081]
[1756431155819,7.37,213.48,213.34,7.69]
[1756431156620,6.71463292,213.45,213.34,7.69]
[1756431157417,4.215,213.51,213.29,65.6328]
[1756431157418,7.28,213.56,213.4,65.5991]
[1756431157814,7.28,213.56,213.42,65.593]
[1756431158015,6.71463292,213.59,213.41,65.5962]
[1756431158016,6.71463292,213.59,213.46,7.2]
[1756431158217,7.28,213.61,213.46,7.2]
[1756431158622,7.28,213.61,213.47,4.2157]
[1756431158918,7.28,213.58,213.4,72.7991]
[1756431159719,7.28,213.58,213.41,65.5961]
[1756431159916,7.28,213.58,213.47,65.5754]
[1756431160116,7.28,213.58,213.49,4.2151]
[1756431162221,7.28,213.64,213.52,65.5623]
[1756431162912,7.28,213.64,213.51,65.5645]
[1756431163521,7.28,213.64,213.54,4.2142]
[1756431164419,7.28,213.64,213.51,4.2148]
[1756431164613,7.28,213.64,213.54,65.5564]
[1756431164915,314.48,213.69,213.58,65.5438]
[1756431165315,314.48,213.69,213.56,7.2]
[1756431165518,7.28,213.68,213.56,7.2]
[1756431166318,7.28,213.68,213.59,4.2133]
[1756431166824,7.28,213.68,213.53,4.2144]
[1756431167021,11.4916,213.68,213.52,65.5619]
[1756431167427,7.28,213.68,213.54,65.5565]
[1756431168321,7.28,213.68,213.57,4.2136]
[1756431168525,7.28,213.64,213.51,7.2]
[1756431169320,7.28,213.64,213.53,4.2145]
[1756431169725,7.28,213.64,213.51,7.2]
[1756431170623,7.28,213.59,213.41,7.2]
[1756431170820,126.24,213.58,213.41,7.2]
[1756431171421,7.28,213.55,213.44,4.2161]
[1756431171728,13.99463292,213.55,213.41,7.2]
[1756431172125,18.20873292,213.55,213.43,4.2165]
[1756431172630,7.28,213.52,213.41,7.2]
[1756431173334,7.28,213.52,213.41,11.4169]
[1756431174230,7.28,213.49,213.36,7.2]
[1756431174436,113.7,213.48,213.36,7.2]
[1756431174735,6.71463292,213.45,213.36,7.2]
[1756431175134,7.28,213.44,213.3,7.2]
[1756431175640,13.99463292,213.4,213.26,7.2]
[1756431175833,126.48,213.39,213.26,7.2]
[1756431176230,13.99463292,213.4,213.28,65.6362]
[1756431176438,13.99463292,213.4,213.26,7.2]
[1756431176439,7.28,213.4,213.26,7.2]
[1756431177039,4.2175,213.38,213.26,7.2]
[1756431177243,7.28,213.4,213.26,7.2]
[1756431178538,7.28,213.4,213.28,65.6366]
[1756431178735,7.28,213.48,213.35,65.615]
[1756431178935,7.28,213.48,213.34,7.2]
[1756431179441,7.28,213.48,213.36,65.6119]
[1756431179835,7.28,213.48,213.34,7.2]
[1756431180340,7.28,213.48,213.38,4.2174]
[1756431181436,7.28,213.48,213.35,65.6145]
[1756431181636,6.71463292,213.53,213.38,65.6051]
[1756431181940,126.64,213.52,213.39,7.2]
[1756431182147,126.64,213.52,213.39,11.4171]
[1756431182639,7.28,213.53,213.39,7.2]
[1756431182841,133.94,213.53,213.39,7.2]
[1756431183638,133.94,213.53,213.34,7.2]
[1756431184042,138.1545,213.53,213.36,4.2177]
[1756431185140,138.1545,213.53,213.38,4.2174]
[1756431186042,4.2149,213.51,213.38,4.2174]
[1756431186246,126.32,213.52,213.38,4.2174]
[1756431186545,126.32,213.52,213.4,4.217]
[1756431186837,7.28,213.53,213.4,4.217]
[1756431187038,133.44,213.53,213.42,4.2166]
[1756431187238,7.28,213.53,213.4,72.8992]
[1756431187432,133.48,213.53,213.4,72.8992]
[1756431187638,133.48,213.53,213.4,7.3]
[1756431188246,133.48,213.53,213.42,4.2165]
[1756431188442,126.14,213.52,213.42,4.2165]
[1756431189241,126.02,213.52,213.43,4.2163]
[1756431189842,133.67,213.58,213.44,7.3]
[1756431190041,7.69,213.57,213.42,4.2165]
[1756431190242,2.30978192,213.56,213.42,4.2165]
[1756431190546,7.69,213.55,213.42,4.2165]
[1756431191138,11.9043,213.55,213.44,4.2162]
[1756431191340,126.26,213.54,213.44,4.2162]
[1756431191534,73.2508,213.53,213.32,65.6231]
[1756431191739,7.69,213.48,213.33,7.3]
[1756431192642,6.71463292,213.44,213.27,65.6384]
[1756431192843,120.47,213.43,213.28,7.3]
[1756431193646,124.6867,213.43,213.32,4.2185]
[1756431194540,124.6867,213.43,213.3,4.219]
[1756431194739,4.2169,213.42,213.3,4.219]
[1756431195755,4.2171,213.4,213.3,4.219]
[1756431196155,120.47,213.43,213.31,4.2187]
[1756431196950,4.2169,213.41,213.31,4.2187]
[1756431197152,120.47,213.43,213.31,4.2187]
[1756431197455,4.02788804,213.42,213.31,4.2187]
[1756431198457,7.69,213.41,213.31,4.2187]
[1756431198753,112.78,213.43,213.18,74.1091]
[1756431198754,7.69,213.37,213.24,65.6488]
[1756431199453,7.69,213.37,213.28,4.2194]
[1756431199856,7.69,213.37,213.23,7.3]
[1756431200052,7.69,213.37,213.23,72.9514]
[1756431200857,7.69,213.37,213.29,4.2192]
[1756431201056,11.9078,213.37,213.23,7.3]
[1756431201349,4.02788804,213.34,213.23,7.3]
[1756431201547,7.69,213.33,213.23,7.3]
[1756431201949,7.69,213.33,213.23,4.2203]
[1756431202146,4.2188,213.32,213.18,7.3]
[1756431202856,7.69,213.29,213.18,7.3]
[1756431203752,7.69,213.29,213.19,4.2212]
[1756431204148,4.02788804,213.34,213.22,72.9546]
[1756431204355,7.69,213.35,213.24,65.6488]
[1756431204555,4.02788804,213.38,213.26,7.3]
[1756431204751,4.02788804,213.38,213.31,4.2187]
[1756431204951,133.25,213.4,213.31,4.2187]
[1756431206854,133.25,213.4,213.29,4.2192]
[1756431207255,4.2178,213.37,213.26,7.3]
[1756431207558,4.2178,213.37,213.25,4.22]
[1756431207559,4.02788804,213.34,213.25,4.22]
[1756431208058,4.02788804,213.34,213.21,72.9574]
[1756431208059,4.02788804,213.34,213.26,4.2197]
[1756431208560,7.69,213.36,213.25,7.3]
[1756431208759,7.69,213.36,213.29,4.2192]
[1756431209156,4.02788804,213.38,213.26,65.6426]
[1756431210358,7.69,213.37,213.25,7.3]
[1756431210555,4.02788804,213.34,213.25,7.3]
[1756431210752,4.02788804,213.3,213.19,7.3]
[1756431211263,4.02788804,213.3,213.21,4.2207]
[1756431211562,4.02788804,213.3,213.19,7.3]
[1756431211964,4.02788804,213.3,213.2,4.221]
[1756431212657,0.81617337,213.34,213.25,65.6452]
[1756431212869,4.02788804,213.38,213.23,7.3]
[1756431213160,4.02788804,213.38,213.24,65.6486]
[1756431213363,8.24548804,213.38,213.28,4.2193]
[1756431213555,4.02788804,213.38,213.28,4.2193]
[1756431213959,4.02788804,213.38,213.26,7.3]
[1756431214264,129.26788804,213.38,213.26,7.3]
[1756431214663,2.32010107,213.37,213.26,7.3]
[1756431214859,4.02788804,213.3,213.2,7.3]
[1756431219568,4.02788804,213.3,213.15,7.39]
[1756431221063,32.00788804,213.3,213.15,7.39]
[1756431221371,4.02788804,213.26,213.15,7.39]
[1756431222262,7.6,213.29,213.15,7.39]
[1756431222467,22.84788804,213.34,213.15,7.39]
[1756431222670,11.62788804,213.34,213.15,7.39]
[1756431223370,4.02788804,213.3,213.18,7.39]
[1756431223570,7.6,213.29,213.18,7.39]
[1756431223768,7.6,213.29,213.07,65.6998]
[1756431223769,4.02788804,213.22,213.07,65.6998]
[1756431224069,4.02788804,213.22,213.12,7.39]
[1756431225271,7.6,213.25,213.12,7.39]
[1756431226469,20.28,213.29,213.12,7.39]
[1756431227265,6.74362073,213.27,213.12,7.39]
[1756431229073,7.6,213.26,213.12,7.39]
[1756431229275,88.74,213.25,213.12,7.39]
[1756431229669,7.6,213.24,213.12,7.39]
[1756431232474,11.8203,213.24,213.12,7.39]
[1756431233067,7.6,213.24,213.15,7.39]
[1756431233272,6.74362073,213.26,213.15,7.39]
[1756431234177,6.74362073,213.26,213.2,4.2209]
[1756431234374,7.6,213.28,213.19,7.39]
[1756431234581,7.6,213.28,213.2,4.221]
[1756431235374,7.6,213.28,213.13,7.39]
[1756431235581,2.32258599,213.27,213.13,7.39]
[1756431235883,7.6,213.23,213.13,7.39]
[1756431237390,7.6,213.23,213.13,4.2224]
[1756431238783,4.221,213.21,213.13,4.2224]
[1756431239184,4.221,213.21,213.1,4.2228]
[1756431239388,4.221,213.21,213.08,7.39]
[1756431240890,79.7134,213.26,213.08,7.39]
[1756431240891,89.78,213.28,213.08,7.39]
[1756431241090,2.32489118,213.27,213.08,7.39]
[1756431241284,2.32489118,213.26,213.08,7.39]
[1756431241586,89.78,213.28,213.08,7.39]
[1756431241794,2.32609923,213.27,213.08,7.39]
[1756431241990,7.6,213.25,213.08,7.39]
[1756431243090,7.6,213.25,213.07,65.6999]
[1756431243091,58.28,213.28,213.1,7.39]
[1756431243293,7.6,213.3,213.12,12.62044869]
[1756431243489,315.08,213.34,213.15,5.23044869]
[1756431243690,315.08,213.34,213.17,7.39]
[1756431244187,7.6,213.33,213.17,7.39]
[1756431244497,2.3300738,213.32,213.17,7.39]
[1756431244688,2.32948861,213.31,213.17,7.39]
[1756431244889,7.6,213.33,213.17,7.39]
[1756431245290,315.08,213.34,213.17,11.41962392]
[1756431245490,315.08,213.34,213.18,7.39]
[1756431245694,7.6,213.38,213.18,7.39]
[1756431245996,102.96606625,213.41,213.22,5.23044869]
[1756431245997,102.1502086,213.41,213.22,5.23044869]
[1756431246186,102.1502086,213.41,213.22,25.51044869]
[1756431246387,102.1502086,213.41,213.25,7.53]
[1756431246590,7.37,213.4,213.25,7.53]
[1756431247194,102.1502086,213.41,213.33,7.53]
[1756431247994,102.1502086,213.41,213.35,0.03313696]
[1756431249088,7.37,213.43,213.35,0.03313696]
[1756431250299,7.37,213.43,213.35,4.25113696]
[1756431253001,7.37,213.43,213.35,0.03313696]
[1756431254603,123.76,213.47,213.36,7.53]
[1756431255302,123.74,213.47,213.36,7.53]
[1756431255704,123.74,213.47,213.39,0.03124203]
[1756431255903,123.7,213.47,213.39,0.03124203]
[1756431256203,123.64,213.47,213.39,0.03124203]
[1756431256592,123.6,213.47,213.39,0.03124203]
[1756431257198,7.37,213.55,213.4,7.53]
[1756431257415,7.37,213.61,213.42,4.02962392]
[1756431257607,7.37,213.61,213.43,7.53]
[1756431257905,7.37,213.58,213.49,0.03023436]
[1756431258401,7.37,213.58,213.43,7.53]
[1756431258605,7.37,213.58,213.51,0.0325049]
[1756431259306,4.02962392,213.63,213.52,65.5622]
[1756431259599,7.37,213.64,213.54,65.5559]
[1756431259991,7.37,213.64,213.57,0.03192596]
[1756431260504,7.37,213.64,213.59,4.2133]
[1756431260901,118.13,213.65,213.59,4.2133]
[1756431261595,110.76,213.65,213.59,65.5397]
[1756431261802,110.76,213.65,213.6,73.0677]
[1756431262201,110.76,213.65,213.63,4.2125]
[1756431262699,4.02962392,213.76,213.63,65.5281]
[1756431262899,131.19,213.75,213.63,65.5281]
[1756431263504,131.19,213.75,213.67,0.03174602]
[1756431264403,123.72,213.74,213.67,0.03174602]
[1756431265097,131.03,213.75,213.67,0.03174602]
[1756431265895,7.37,213.75,213.67,0.03174602]
[1756431266101,419.92190772,213.79,213.67,0.03174602]
[1756431266296,419.92190772,213.79,213.71,65.5031]
[1756431267399,419.92190772,213.79,213.76,4.2099]
[1756431267603,419.92190772,213.79,213.73,0.03166133]
[1756431267799,105.06190772,213.79,213.73,0.03166133]
[1756431268405,7.37,213.8,213.73,0.03166133]
[1756431268908,123.44,213.81,213.75,4.2101]
[1756431269903,123.44,213.81,213.73,0.03166133]
[1756431270504,123.44,213.81,213.74,4.2103]
[1756431273005,123.44,213.81,213.73,0.03166133]
[1756431273006,79.4946,213.98,213.76,65.488]
[1756431273207,130.65,213.9,213.76,73.018]
[1756431273407,130.65,213.9,213.77,7.53]
[1756431274008,130.65,213.9,213.81,0.03117424]
[1756431277715,7.37,213.9,213.81,0.03117424]
[1756431278011,123.24,213.89,213.81,0.03117424]
[1756431278816,7.37,213.88,213.81,0.03117424]
[1756431279916,123.24,213.89,213.81,0.03117424]
[1756431281510,7.37,213.88,213.82,65.4701]
[1756431282716,7.37,213.88,213.86,4.2078]
[1756431282917,130.57,213.88,213.86,4.2078]
[1756431283718,123.2,213.88,213.86,4.2078]
[1756431283920,7.37,213.87,213.86,4.2078]
[1756431284521,7.37,213.87,213.81,0.03117424]
[1756431284918,130.55,213.87,213.82,65.4703]
[1756431285518,130.55,213.87,213.81,0.03117424]
[1756431286823,7.37,213.83,213.77,4.2096]
[1756431287014,123.16,213.82,213.77,4.2096]
[1756431287422,7.37,213.81,213.74,4.2102]
[1756431287722,4.02962392,213.8,213.74,4.2102]
[1756431288022,4.02962392,213.8,213.73,4.2105]
[1756431288223,0.0308416,213.79,213.7,65.5071]
[1756431288519,7.37,213.78,213.75,4.21]
[1756431288723,130.53,213.77,213.68,65.5127]
[1756431289223,123.16,213.77,213.71,65.5042]
[1756431289522,0.03466327,213.75,213.69,65.5102]
[1756431289920,7.37,213.74,213.64,65.5245]
[1756431291924,7.37,213.74,213.56,4.02962392]
[1756431291925,7.37,213.68,213.58,7.4]
[1756431292124,0.03466327,213.75,213.58,7.4]
[1756431292125,7.40466327,213.75,213.58,7.4]
[1756431292326,11.39962392,213.75,213.58,7.4]
[1756431292527,7.18,213.74,213.58,7.4]
[1756431292726,0.03399876,213.69,213.58,7.4]
[1756431298426,7.37,213.68,213.58,7.4]
[1756431298633,4.02962392,213.67,213.58,7.4]
[1756431299025,11.39962392,213.68,213.59,65.5407]
[1756431299228,4.02962392,213.68,213.61,65.5341]
[1756431299429,0.0318327,213.65,213.61,65.5341]
[1756431299628,0.0318327,213.65,213.62,7.4]
[1756431299933,4.02962392,213.68,213.61,4.2128]
[1756431300130,0.03351909,213.66,213.61,4.2128]
[1756431301031,0.03351909,213.66,213.63,65.5289]
[1756431301233,0.03351909,213.66,213.64,7.4]
[1756431301736,0.03351909,213.66,213.6,65.5376]
[1756431301938,0.03351909,213.66,213.58,7.4]
[1756431302130,4.06314301,213.66,213.58,7.4]
[1756431302331,11.43314301,213.66,213.58,7.4]
[1756431302538,4.06314301,213.66,213.62,7.4]
[1756431302733,0.03351909,213.66,213.6,7.4]
[1756431303335,0.03351909,213.66,213.63,4.2125]
[1756431303530,0.03351909,213.66,213.61,65.5347]
[1756431303735,0.03351909,213.66,213.62,7.4]
[1756431303935,0.03351909,213.66,213.65,4.2121]
[1756431304133,0.03351909,213.66,213.65,11.6121]
[1756431305442,0.03351909,213.66,213.65,4.2121]
[1756431306645,0.03351909,213.66,213.65,11.9721]
[1756431308052,325.79962392,213.77,213.65,7.76]
[1756431308253,7.41,213.75,213.65,7.76]
[1756431308552,7.41,213.75,213.61,65.5347]
[1756431308950,7.41,213.72,213.6,7.76]
[1756431309253,7.41,213.72,213.66,0.03028503]
[1756431309443,7.41,213.72,213.66,4.24218503]
[1756431309643,7.41,213.76,213.66,0.03028503]
[1756431309842,2.32641409,213.75,213.66,0.03028503]
[1756431310042,7.41,213.76,213.66,0.03028503]
[1756431310653,7.41,213.76,213.69,4.2112]
[1756431311046,7.41,213.76,213.65,73.2822]
[1756431311254,7.41,213.76,213.66,65.5193]
[1756431311554,7.41,213.76,213.7,0.03095641]
[1756431312151,7.41,213.76,213.7,4.24195641]
[1756431312551,7.41,213.76,213.7,0.03095641]
[1756431312751,7.41,213.73,213.61,65.5338]
[1756431313255,7.41,213.73,213.66,4.2118]
[1756431313451,2.61058404,213.7,213.66,4.2118]
[1756431313657,10.02058404,213.7,213.66,4.2118]
[1756431313857,2.61058404,213.7,213.66,4.2118]
[1756431314057,7.41,213.69,213.66,4.2118]
[1756431314454,2.61058404,213.67,213.63,4.2124]
[1756431314659,10.02058404,213.67,213.63,4.2124]
[1756431316857,0.03146498,213.7,213.66,65.5193]
[1756431317056,0.03146498,213.7,213.67,7.76]
[1756431317357,7.41,213.78,213.69,65.5101]
[1756431317557,0.02952988,213.71,213.7,7.76]
[1756431318054,7.41,213.78,213.74,4.2103]
[1756431318259,7.41,213.78,213.7,7.76]
[1756431318456,0.0345316,213.78,213.73,65.4982]
[1756431318663,0.0345316,213.78,213.74,7.76]
[1756431320060,0.0345316,213.78,213.72,7.76]
[1756431327969,0.0345316,213.78,213.76,4.2098]
[1756431328371,0.0345316,213.78,213.77,7.76]
[1756431332570,7.41,213.88,213.77,73.2441]
[1756431333468,7.41,213.88,213.81,4.2088]
[1756431335672,7.41,213.88,213.8,0.03104273]
[1756431335673,7.41,213.85,213.8,0.03104273]
[1756431336064,4.01143351,213.82,213.73,4.2104]
[1756431336263,7.19,213.81,213.73,4.2104]
[1756431336870,4.01143351,213.82,213.69,7.32]
[1756431337071,130.19,213.85,213.69,7.32]
[1756431337467,0.03202685,213.78,213.69,7.32]
[1756431338774,58.78,213.88,213.67,123.0]
[1756431338775,54.29,213.89,213.71,7.32]
[1756431338975,54.29,213.89,213.71,12.58530718]
[1756431339270,54.29,213.89,213.72,7.32]
[1756431339872,7.19,213.89,213.72,12.55044869]
[1756431340176,7.19,213.89,213.7,4.01143351]
[1756431340177,7.19,213.89,213.79,7.32]
[1756431341976,11.20143351,213.89,213.78,0.03358444]
[1756431343179,314.44,213.91,213.79,7.32]
[1756431343977,314.44,213.91,213.83,0.03452725]
[1756431344279,7.19,213.9,213.87,4.2078]
[1756431344678,7.19,213.9,213.85,4.2082]
[1756431344879,7.19,213.9,213.83,0.03452725]
[1756431345379,7.19,213.9,213.84,4.2082]
[1756431345578,7.19,213.9,213.83,0.03452725]
[1756431346080,7.19,213.97,213.9,4.2072]
[1756431346282,4.01143351,213.94,213.83,7.35452725]
[1756431346472,126.95143351,213.94,213.83,7.32]
[1756431346676,131.15803351,213.94,213.86,4.2078]
[1756431346871,126.95143351,213.94,213.86,0.03474743]
[1756431347179,7.19,213.95,213.86,0.03474743]
[1756431347380,122.94,213.94,213.86,0.03474743]
[1756431347774,7.19,213.93,213.9,4.2071]
[1756431347974,7.19,213.93,213.86,0.03474743]
[1756431348786,7.19,213.93,213.86,4.24254743]
[1756431349280,131.15793351,213.94,213.86,4.24254743]
[1756431349281,7.19,214.03,213.87,72.775]
[1756431349486,7.19,213.98,213.87,72.775]
[1756431350186,7.19,213.98,213.92,4.2068]
[1756431350389,7.19,213.98,213.9,0.03073393]
[1756431351686,4.2059,213.97,213.9,0.03073393]
[1756431352783,7.19,213.98,213.9,0.03073393]
[1756431353785,7.19,213.98,213.91,4.2069]
[1756431354786,11.3958,213.98,213.91,4.2069]
[1756431355489,2.60439773,213.94,213.91,4.2069]
[1756431357389,9.79439773,213.94,213.9,0.03073393]
[1756431358594,7.19,213.94,213.9,0.03073393]
[1756431358891,9.79439773,213.94,213.9,0.03073393]
[1756431359392,7.19,213.94,213.9,4.23783393]
[1756431359593,9.79439773,213.94,213.9,4.23783393]
[1756431360091,7.19,213.93,213.9,4.23783393]
[1756431360283,7.19,213.93,213.9,0.03073393]
[1756431360682,9.79439773,213.91,213.83,7.32]
[1756431360886,2.60439773,213.91,213.83,7.32]
[1756431362188,0.03053156,213.89,213.83,72.7871]
[1756431362393,0.03053156,213.89,213.84,7.32]
[1756431362588,0.03053156,213.89,213.83,65.4671]
[1756431362589,0.03053156,213.89,213.88,7.32]
[1756431364588,7.19,214.03,213.94,7.32]
[1756431365196,2.60439773,214.02,213.94,7.32]
[1756431365988,2.60439773,214.02,213.91,65.4424]
[1756431365989,2.60439773,214.04,213.96,0.03164253]
[1756431366189,2.60439773,214.04,213.98,4.2056]
[1756431366389,2.60439773,214.04,213.97,7.32]
[1756431366887,2.60439773,213.98,213.96,0.03164253]
[1756431367084,7.07,213.97,213.96,0.03164253]
[1756431367591,6.81019773,213.98,213.96,0.03164253]
[1756431367790,2.60439773,213.98,213.96,0.03164253]
[1756431367994,4.2053,214.0,213.96,0.03164253]
[1756431368187,2.60439773,214.01,213.96,0.03164253]
[1756431368391,2.60439773,214.01,213.97,7.07]
[1756431368597,7.07,214.08,213.97,7.07]
[1756431368794,2.60439773,214.06,213.97,7.07]
[1756431368990,9.67439773,214.08,213.97,7.07]
[1756431369386,4.204,214.07,213.99,0.03298853]
[1756431370190,2.60439773,214.05,213.99,0.03298853]
[1756431370396,9.67439773,214.05,213.99,0.03298853]
[1756431370902,2.60439773,214.07,213.99,0.03298853]
[1756431371097,2.60439773,214.07,214.0,7.07]
[1756431371600,2.60439773,214.09,214.0,7.07]
[1756431372298,2.60439773,214.12,214.0,7.07]
[1756431373004,2.60439773,214.12,214.04,0.03280992]
[1756431373302,2.60439773,214.13,214.04,0.03280992]
[1756431373800,4.2033,214.1,214.04,0.03280992]
[1756431374202,2.60439773,214.13,214.04,0.03280992]
[1756431375099,4.2031,214.12,214.04,0.03280992]
[1756431375302,2.60439773,214.13,214.04,0.03280992]
[1756431376202,4.2038,214.08,214.04,0.03280992]
[1756431376404,2.60439773,214.13,214.04,7.10280992]
[1756431376612,4.2033,214.1,214.04,7.10280992]
[1756431377302,4.2029,214.12,214.04,7.10280992]
[1756431378400,4.2032,214.11,214.04,7.10280992]
[1756431378601,2.60439773,214.1,214.04,0.03280992]
[1756431379106,4.2038,214.08,214.04,0.03280992]
[1756431379707,11.2732,214.11,214.04,0.03280992]
[1756431380009,2.60439773,214.14,214.05,7.07]
[1756431380301,2.60439773,214.08,214.04,0.03280992]
[1756431380503,2.60439773,214.08,214.0,7.07]
[1756431380706,9.67439773,214.09,214.04,0.03393485]
[1756431380902,6.80799773,214.09,214.04,0.03393485]
[1756431381101,7.07,214.08,214.04,0.03393485]
[1756431382209,6.80799773,214.09,214.04,0.03393485]
[1756431382410,2.60439773,214.12,214.04,0.03393485]
[1756431383509,4.2034,214.1,214.04,0.03393485]
[1756431383913,2.60439773,214.12,214.04,0.03393485]
[1756431384608,2.60439773,214.09,214.04,0.03393485]
[1756431384815,7.07,214.05,214.04,0.03393485]
[1756431385009,7.07,214.05,213.96,7.07]
[1756431385307,2.60439773,214.03,213.96,7.07]
[1756431385515,7.07,213.96,213.87,7.07]
[1756431385715,2.60439773,213.94,213.87,7.07]
[1756431386005,2.60439773,213.94,213.81,2.60439773]
[1756431386006,2.60439773,213.91,213.79,7.07]
[1756431386207,2.60439773,213.91,213.82,7.07]
[1756431386404,11.30945085,213.93,213.83,4.2086]
[1756431386605,11.2768,213.93,213.83,4.2086]
[1756431386908,0.03398896,213.9,213.82,7.07]
[1756431387508,7.07,213.89,213.77,7.07]
[1756431387805,7.07,213.89,213.81,4.2088]
[1756431388314,0.03168068,213.85,213.82,7.07]
[1756431388709,9.70607841,213.85,213.74,7.07]
[1756431389211,4.2086,213.83,213.74,7.07]
[1756431389406,2.60439773,213.82,213.74,7.07]
[1756431390001,0.03395585,213.8,213.74,7.07]
[1756431390807,2.60439773,213.79,213.67,65.5153]
[1756431391011,2.60439773,213.79,213.69,7.07]
[1756431391418,11.279,213.81,213.7,4.2111]
[1756431391616,0.03485034,213.76,213.7,4.2111]